[Event "Faroese-ch Candidates 2025"]
[Site "Torshavn"]
[Date "2025.04.12"]
[Round "1.1"]
[White "Tummasarson, Flovin M."]
[Black "Dahl, Karl M"]
[Result "1-0"]
[Annotator "NA"]
[ECO "B54"]
[WhiteElo "1837"]
[BlackElo "1772"]
[PlyCount "95"]
[EventDate "2025.04.11"]
[EventType "tourn"]
[EventCountry "FAI"]
[SourceTitle "playchess.com"]
[Source "ChessBase"]
[SourceQuality "1"]
[TimeControl "40/5400+30:900+30"]

1. e4 {[%emt 0:00:22]} c5 {[%emt 0:00:11]} 2. Nf3 {[%emt 0:00:06]} d6 {[%emt 0:00:12]} 3. d4 {[%emt 0:00:31]} cxd4 {[%emt 0:00:13]} 4. Nxd4 {[%emt 0:00:07]} Nf6 {[%emt 0:00:11]} 5. f3 {[%emt 0:00:08]} a6 {[%emt 0:01:15]} 6. c4 {[%emt 0:00:20]} e6 {[%emt 0:02:40]} 7. Be3 {[%emt 0:02:37]} Nc6 {[%emt 0:03:26]} 8. Nc3 {[%emt 0:00:41]} Be7 {[%emt 0:04:57]} 9. Be2 {[%emt 0:03:42]} O-O {[%emt 0:02:21]} 10. Qd2 {[%emt 0:01:54]} Qc7 {[%emt 0:05:14]} 11. O-O {[%emt 0:04:11]} Ne5 {[%emt 0:05:48]} 12. Rac1 {[%emt 0:01:33]} b6 {[%emt 0:04:25]} 13. b4 {[%emt 0:14:20]} Bb7 {[%emt 0:02:06]} 14. Nd1 {[%emt 0:11:32]} Rac8 {[%emt 0:04:35]} 15. Nf2 {[%emt 0:05:01]} Rfd8 {[%emt 0:04:41]} 16. Nb3 {[%emt 0:04:31]} Nfd7 {[%emt 0:10:29]} 17. Rfd1 {[%emt 0:12:54]} Qb8 {[%emt 0:06:07]} 18. f4 {[%emt 0:04:00]} Ng6 {[%emt 0:03:20]} 19. Nd4 {[%emt 0:08:39]} Nf6 {[%emt 0:04:43]} 20. Bd3 {[%emt 0:05:33]} Qa8 {[%emt 0:04:21]} 21. f5 {[%emt 0:01:28]} exf5 {[%emt 0:02:17]} 22. Nxf5 {[%emt 0:00:36]} Nxe4 {[%emt 0:05:04]} 23. Nxe4 {[%emt 0:00:15]} Bxe4 {[%emt 0:00:17]} 24. Bxb6 {[%emt 0:00:21]} Rd7 {[%emt 0:03:54]} 25. Nxe7+ {[%emt 0:01:17]} Nxe7 {[%emt 0:01:55]} 26. Bxe4 {[%emt 0:00:27]} Qxe4 {[%emt 0:00:07]} 27. c5 {[%emt 0:01:01]} d5 {[%emt 0:03:39]} 28. c6 {[%emt 0:03:36]} Rd6 {[%emt 0:03:06]} 29. Re1 {[%emt 0:10:04]} Qh4 {[%emt 0:00:09]} 30. g3 {[%emt 0:00:57]} Qf6 {[%emt 0:00:18]} 31. Bd4 {[%emt 0:00:54]} Qg6 {[%emt 0:01:26]} 32. Rxe7 {[%emt 0:00:12]} Rdxc6 {[%emt 0:00:13]} 33. Rxc6 {[%emt 0:00:29]} Qxc6 {[%emt 0:00:07]} 34. Qg5 {[%emt 0:00:34]} Qc1+ {[%emt 0:00:48]} 35. Qxc1 {[%emt 0:00:08]} Rxc1+ {[%emt 0:00:02]} 36. Kg2 {[%emt 0:00:27]} f6 {[%emt 0:00:33]} 37. a4 {[%emt 0:00:26]} Rc4 {[%emt 0:01:24]} 38. Bc5 {[%emt 0:00:13]} a5 {[%emt 0:00:11]} 39. Rb7 {[%emt 0:00:23]} d4 {[%emt 0:00:31]} 40. Kf3 {[%emt 0:00:00]} Rc2 {[%emt 0:00:00]} 41. Bxd4 {[%emt 0:01:41]} axb4 {[%emt 0:01:34]} 42. h4 {[%emt 0:04:24]} b3 {[%emt 0:00:22]} 43. a5 {[%emt 0:03:53]} Ra2 {[%emt 0:00:21]} 44. Rb5 {[%emt 0:02:07]} h5 {[%emt 0:01:02]} 45. Kf4 {[%emt 0:00:44]} Ra4 {[%emt 0:00:30]} 46. Ke3 {[%emt 0:00:18]} Ra2 {[%emt 0:00:11]} 47. Bc3 {[%emt 0:01:09]} Rg2 {[%emt 0:01:06]} 48. Kf3 {[%emt 0:00:11]} 1-0

[Event "Faroese-ch Candidates 2025"]
[Site "Torshavn"]
[Date "2025.04.12"]
[Round "1.2"]
[White "Hojsted, Ingi"]
[Black "Lamhauge, Eydun"]
[Result "0-1"]
[Annotator "NA"]
[ECO "B13"]
[WhiteElo "1841"]
[BlackElo "1829"]
[PlyCount "38"]
[EventDate "2025.04.11"]
[EventType "tourn"]
[EventCountry "FAI"]
[SourceTitle "playchess.com"]
[Source "ChessBase"]
[SourceQuality "1"]
[TimeControl "40/5400+30:900+30"]

1. e4 {[%emt 0:00:07]} c6 {[%emt 0:00:28]} 2. d4 {[%emt 0:00:14]} d5 {[%emt 0:00:14]} 3. exd5 {[%emt 0:00:10]} cxd5 {[%emt 0:00:14]} 4. Bd3 {[%emt 0:00:13]} Nc6 {[%emt 0:00:30]} 5. c3 {[%emt 0:00:09]} Qc7 {[%emt 0:01:07]} 6. h3 {[%emt 0:02:04]} e5 {[%emt 0:02:22]} 7. dxe5 {[%emt 0:02:01]} Nxe5 {[%emt 0:01:48]} 8. Bb5+ {[%emt 0:03:53]} Bd7 {[%emt 0:10:08]} 9. Qxd5 {[%emt 0:07:48]} O-O-O {[%emt 0:05:33]} 10. Bf4 {[%emt 0:32:12]} Bg4 {[%emt 0:19:58]} 11. Qxd8+ {[%emt 0:04:31]} Qxd8 {[%emt 0:04:02]} 12. hxg4 {[%emt 0:00:15]} Nd3+ {[%emt 0:01:54]} 13. Bxd3 {[%emt 0:00:15]} Qxd3 {[%emt 0:00:09]} 14. Nd2 {[%emt 0:04:27]} Nf6 {[%emt 0:05:53]} 15. O-O-O {[%emt 0:05:37]} Nd5 {[%emt 0:09:04]} 16. Nb3 {[%emt 0:05:42]} Qe4 {[%emt 0:05:46]} 17. Bg3 {[%emt 0:03:49]} a5 {[%emt 0:14:57]} 18. Rh5 {[%emt 0:06:57]} Nxc3 {[%emt 0:04:09]} 19. Nd2 {[%emt 0:07:52]} Nxa2# {[%emt 0:00:34]} 0-1

[Event "Faroese-ch Candidates 2025"]
[Site "Torshavn"]
[Date "2025.04.12"]
[Round "1.3"]
[White "Davidsen, Rokur"]
[Black "Justinussen, Sigurd B."]
[Result "0-1"]
[Annotator "NA"]
[ECO "C84"]
[WhiteElo "1824"]
[BlackElo "1948"]
[PlyCount "74"]
[EventDate "2025.04.11"]
[EventType "tourn"]
[EventCountry "FAI"]
[SourceTitle "playchess.com"]
[Source "ChessBase"]
[SourceQuality "1"]
[TimeControl "40/5400+30:900+30"]

1. e4 {[%emt 0:00:05]} e5 {[%emt 0:00:26]} 2. Nf3 {[%emt 0:00:09]} Nc6 {[%emt 0:01:26]} 3. Bb5 {[%emt 0:00:11]} a6 {[%emt 0:00:55]} 4. Ba4 {[%emt 0:00:09]} Nf6 {[%emt 0:01:24]} 5. O-O {[%emt 0:00:32]} Be7 {[%emt 0:02:30]} 6. c3 {[%emt 0:01:11]} O-O {[%emt 0:02:09]} 7. Re1 {[%emt 0:00:46]} d6 {[%emt 0:03:17]} 8. d3 {[%emt 0:01:28]} h6 {[%emt 0:02:22]} 9. Nbd2 {[%emt 0:01:08]} Nh7 {[%emt 0:03:26]} 10. Nf1 {[%emt 0:00:40]} Ng5 {[%emt 0:01:47]} 11. Bxg5 {[%emt 0:08:42]} Bxg5 {[%emt 0:02:06]} 12. Bxc6 {[%emt 0:00:57]} bxc6 {[%emt 0:00:10]} 13. d4 {[%emt 0:00:21]} exd4 {[%emt 0:03:15]} 14. cxd4 {[%emt 0:06:41]} Be6 {[%emt 0:08:57]} 15. Qc2 {[%emt 0:03:09]} Bd7 {[%emt 0:01:00]} 16. Ne3 {[%emt 0:07:16]} Rb8 {[%emt 0:04:56]} 17. b3 {[%emt 0:01:52]} Rb5 {[%emt 0:02:09]} 18. Nc4 {[%emt 0:15:02]} Re8 {[%emt 0:06:33]} 19. e5 {[%emt 0:07:22]} d5 {[%emt 0:03:51]} 20. Nb2 {[%emt 0:05:08]} Re6 {[%emt 0:04:09]} 21. Nd3 {[%emt 0:02:56]} Rg6 {[%emt 0:03:30]} 22. Nc5 {[%emt 0:05:53]} Bc8 {[%emt 0:01:48]} 23. Qd3 {[%emt 0:10:58]} Be7 {[%emt 0:04:32]} 24. Rac1 {[%emt 0:06:57]} Bxc5 {[%emt 0:05:07]} 25. Rxc5 {[%emt 0:02:51]} Rxc5 {[%emt 0:02:17]} 26. dxc5 {[%emt 0:00:13]} Bh3 {[%emt 0:07:53]} 27. g3 {[%emt 0:02:31]} Bc8 {[%emt 0:03:23]} 28. Nd4 {[%emt 0:02:40]} Qg5 {[%emt 0:02:41]} 29. e6 {[%emt 0:02:58]} Bxe6 {[%emt 0:05:24]} 30. Nxc6 {[%emt 0:01:51]} h5 {[%emt 0:04:33]} 31. Qxa6 {[%emt 0:01:34]} h4 {[%emt 0:00:54]} 32. Qd3 {[%emt 0:00:22]} hxg3 {[%emt 0:00:43]} 33. fxg3 {[%emt 0:00:18]} f5 {[%emt 0:01:39]} 34. Nd4 {[%emt 0:00:51]} Bf7 {[%emt 0:01:25]} 35. Nxf5 {[%emt 0:00:50]} Rf6 {[%emt 0:00:15]} 36. Rf1 {[%emt 0:01:19]} Bg6 {[%emt 0:01:09]} 37. Qxd5+ {[%emt 0:00:16]} Kh7 {[%emt 0:00:26]} 0-1

[Event "Faroese-ch Candidates 2025"]
[Site "Torshavn"]
[Date "2025.04.12"]
[Round "1.4"]
[White "Hojgaard, Brandur"]
[Black "Logv, Hanus a"]
[Result "1/2-1/2"]
[Annotator "NA"]
[ECO "A46"]
[WhiteElo "1861"]
[BlackElo "1744"]
[PlyCount "100"]
[EventDate "2025.04.11"]
[EventType "tourn"]
[EventCountry "FAI"]
[SourceTitle "playchess.com"]
[Source "ChessBase"]
[SourceQuality "1"]
[TimeControl "40/5400+30:900+30"]

1. d4 {[%emt 0:00:11]} e6 {[%emt 0:00:10]} 2. Bf4 {[%emt 0:00:46]} Nf6 {[%emt 0:00:28]} 3. e3 {[%emt 0:00:09]} Be7 {[%emt 0:01:15]} 4. Nf3 {[%emt 0:00:55]} d6 {[%emt 0:01:24]} 5. Nbd2 {[%emt 0:02:14]} O-O {[%emt 0:02:00]} 6. e4 {[%emt 0:02:39]} h6 {[%emt 0:02:48]} 7. Bd3 {[%emt 0:03:28]} Nbd7 {[%emt 0:01:05]} 8. Qe2 {[%emt 0:02:35]} c5 {[%emt 0:05:45]} 9. c3 {[%emt 0:01:52]} cxd4 {[%emt 0:06:40]} 10. cxd4 {[%emt 0:00:29]} d5 {[%emt 0:03:28]} 11. e5 {[%emt 0:03:32]} Nh7 {[%emt 0:02:30]} 12. O-O {[%emt 0:04:49]} Bg5 {[%emt 0:02:24]} 13. Bxh7+ {[%emt 0:07:34]} Kxh7 {[%emt 0:00:09]} 14. Nxg5+ {[%emt 0:00:17]} hxg5 {[%emt 0:00:30]} 15. Qh5+ {[%emt 0:00:31]} Kg8 {[%emt 0:00:22]} 16. Bxg5 {[%emt 0:01:21]} f6 {[%emt 0:03:14]} 17. exf6 {[%emt 0:03:25]} Nxf6 {[%emt 0:03:38]} 18. Qe2 {[%emt 0:06:48]} Qb6 {[%emt 0:09:35]} 19. Bxf6 {[%emt 0:05:59]} Rxf6 {[%emt 0:03:07]} 20. Nf3 {[%emt 0:01:35]} Bd7 {[%emt 0:02:50]} 21. Rfc1 {[%emt 0:04:39]} Raf8 {[%emt 0:06:06]} 22. Rc3 {[%emt 0:05:28]} Bb5 {[%emt 0:07:38]} 23. Qd2 {[%emt 0:04:45]} Be8 {[%emt 0:21:41]} 24. Re1 {[%emt 0:12:39]} Bh5 {[%emt 0:03:47]} 25. Rb3 {[%emt 0:05:24]} Qa6 {[%emt 0:03:26]} 26. Ra3 {[%emt 0:02:11]} Qb6 {[%emt 0:01:21]} 27. Ree3 {[%emt 0:01:31]} Bxf3 {[%emt 0:01:01]} 28. Rxf3 {[%emt 0:02:21]} Rxf3 {[%emt 0:00:05]} 29. gxf3 {[%emt 0:02:07]} a6 {[%emt 0:01:38]} 30. Re3 {[%emt 0:02:12]} Qd6 {[%emt 0:00:42]} 31. Qe2 {[%emt 0:01:37]} Rf6 {[%emt 0:01:29]} 32. Re5 {[%emt 0:02:41]} Qc6 {[%emt 0:02:02]} 33. Qd1 {[%emt 0:02:08]} Qe8 {[%emt 0:00:44]} 34. Rg5 {[%emt 0:01:38]} Rg6 {[%emt 0:01:06]} 35. Rg3 {[%emt 0:00:36]} Qf7 {[%emt 0:00:33]} 36. Qd3 {[%emt 0:02:08]} Rh6 {[%emt 0:00:36]} 37. Kg2 {[%emt 0:00:51]} Qh5 {[%emt 0:00:41]} 38. h3 {[%emt 0:00:15]} Rf6 {[%emt 0:00:29]} 39. Qc2 {[%emt 0:01:03]} Qf7 {[%emt 0:00:08]} 40. Qc8+ {[%emt 0:00:00]} Kh7 {[%emt 0:00:00]} 41. Qc3 {[%emt 0:02:32]} g6 {[%emt 0:03:54]} 42. Rg4 {[%emt 0:03:02]} Rf5 {[%emt 0:04:36]} 43. Qe3 {[%emt 0:02:42]} Qf6 {[%emt 0:01:20]} 44. Kg3 {[%emt 0:01:25]} Kg7 {[%emt 0:06:16]} 45. Qc3 {[%emt 0:05:31]} Rh5 {[%emt 0:01:29]} 46. Qc7+ {[%emt 0:01:14]} Qf7 {[%emt 0:00:16]} 47. Qc3 {[%emt 0:03:27]} Qf6 {[%emt 0:00:18]} 48. Qc7+ {[%emt 0:00:48]} Qf7 {[%emt 0:00:02]} 49. Qxf7+ {[%emt 0:00:25]} Kxf7 {[%emt 0:00:01]} 50. Rh4 {[%emt 0:01:07]} Rxh4 {[%emt 0:00:10]} 1/2-1/2

[Event "Faroese-ch Candidates 2025"]
[Site "Torshavn"]
[Date "2025.04.13"]
[Round "2.1"]
[White "Dahl, Karl M"]
[Black "Logv, Hanus a"]
[Result "0-1"]
[Annotator "NA"]
[ECO "E11"]
[WhiteElo "1772"]
[BlackElo "1744"]
[PlyCount "58"]
[EventDate "2025.04.11"]
[EventType "tourn"]
[EventCountry "FAI"]
[SourceTitle "playchess.com"]
[Source "ChessBase"]
[SourceQuality "1"]
[TimeControl "40/5400+30:900+30"]

1. d4 {[%emt 0:00:05]} e6 {[%emt 0:00:16]} 2. c4 {[%emt 0:00:12]} Nf6 {[%emt 0:00:13]} 3. Nf3 {[%emt 0:00:12]} Bb4+ {[%emt 0:01:25]} 4. Bd2 {[%emt 0:00:16]} Bxd2+ {[%emt 0:00:06]} 5. Qxd2 {[%emt 0:00:23]} O-O {[%emt 0:00:33]} 6. Nc3 {[%emt 0:00:17]} d5 {[%emt 0:02:40]} 7. e3 {[%emt 0:02:35]} dxc4 {[%emt 0:04:05]} 8. Bxc4 {[%emt 0:01:39]} Nbd7 {[%emt 0:00:22]} 9. Rd1 {[%emt 0:09:57]} Nb6 {[%emt 0:01:11]} 10. Bb3 {[%emt 0:04:10]} Nbd5 {[%emt 0:03:51]} 11. Bc2 {[%emt 0:05:04]} b6 {[%emt 0:04:46]} 12. e4 {[%emt 0:00:55]} Nxc3 {[%emt 0:00:54]} 13. bxc3 {[%emt 0:00:11]} Bb7 {[%emt 0:01:52]} 14. Qf4 {[%emt 0:06:30]} h6 {[%emt 0:06:42]} 15. g4 {[%emt 0:10:12]} Nh7 {[%emt 0:11:26]} 16. h4 {[%emt 0:04:27]} f5 {[%emt 0:10:40]} 17. gxf5 {[%emt 0:03:52]} exf5 {[%emt 0:02:13]} 18. Bb3+ {[%emt 0:02:47]} Kh8 {[%emt 0:01:55]} 19. Ne5 {[%emt 0:01:29]} Qe8 {[%emt 0:06:28]} 20. h5 {[%emt 0:04:24]} Rf6 {[%emt 0:11:36]} 21. Ng6+ {[%emt 0:06:15]} Rxg6 {[%emt 0:00:11]} 22. hxg6 {[%emt 0:00:09]} Qxg6 {[%emt 0:00:21]} 23. Kd2 {[%emt 0:03:53]} Bxe4 {[%emt 0:03:15]} 24. Rhg1 {[%emt 0:00:40]} Ng5 {[%emt 0:00:55]} 25. Kc1 {[%emt 0:05:02]} Qc6 {[%emt 0:01:56]} 26. Qe3 {[%emt 0:04:03]} f4 {[%emt 0:02:27]} 27. Qe2 {[%emt 0:02:50]} Qxc3+ {[%emt 0:01:46]} 28. Bc2 {[%emt 0:00:09]} Qa1+ {[%emt 0:03:55]} 29. Kd2 {[%emt 0:01:13]} Qxd4+ {[%emt 0:00:18]} 0-1

[Event "Faroese-ch Candidates 2025"]
[Site "Torshavn"]
[Date "2025.04.13"]
[Round "2.2"]
[White "Justinussen, Sigurd B."]
[Black "Hojgaard, Brandur"]
[Result "1/2-1/2"]
[Annotator "NA"]
[ECO "C01"]
[WhiteElo "1948"]
[BlackElo "1861"]
[PlyCount "62"]
[EventDate "2025.04.11"]
[EventType "tourn"]
[EventCountry "FAI"]
[SourceTitle "playchess.com"]
[Source "ChessBase"]
[SourceQuality "1"]
[TimeControl "40/5400+30:900+30"]

1. e4 {[%emt 0:00:08]} e6 {[%emt 0:00:32]} 2. d4 {[%emt 0:00:51]} d5 {[%emt 0:00:11]} 3. Bd3 {[%emt 0:00:35]} Nf6 {[%emt 0:01:47]} 4. Nd2 {[%emt 0:01:14]} c5 {[%emt 0:02:51]} 5. exd5 {[%emt 0:02:55]} exd5 {[%emt 0:01:47]} 6. dxc5 {[%emt 0:00:46]} Bxc5 {[%emt 0:01:04]} 7. Ngf3 {[%emt 0:01:00]} O-O {[%emt 0:05:27]} 8. O-O {[%emt 0:00:36]} Bg4 {[%emt 0:01:26]} 9. Nb3 {[%emt 0:02:46]} Bb6 {[%emt 0:07:56]} 10. Bg5 {[%emt 0:02:42]} Nc6 {[%emt 0:04:58]} 11. Be2 {[%emt 0:06:03]} Qd6 {[%emt 0:03:53]} 12. c3 {[%emt 0:05:30]} Bc7 {[%emt 0:07:29]} 13. g3 {[%emt 0:00:38]} Bb6 {[%emt 0:01:07]} 14. Nfd4 {[%emt 0:03:27]} Bxe2 {[%emt 0:11:12]} 15. Qxe2 {[%emt 0:01:01]} Nxd4 {[%emt 0:04:33]} 16. Nxd4 {[%emt 0:01:19]} Bxd4 {[%emt 0:00:52]} 17. cxd4 {[%emt 0:00:10]} h6 {[%emt 0:02:03]} 18. Bf4 {[%emt 0:03:18]} Qd7 {[%emt 0:01:24]} 19. Rac1 {[%emt 0:03:12]} Rac8 {[%emt 0:04:00]} 20. Be5 {[%emt 0:04:50]} Ne4 {[%emt 0:05:00]} 21. f3 {[%emt 0:03:29]} Ng5 {[%emt 0:02:25]} 22. g4 {[%emt 0:07:21]} Rxc1 {[%emt 0:07:30]} 23. Rxc1 {[%emt 0:00:24]} Rc8 {[%emt 0:00:16]} 24. Rxc8+ {[%emt 0:06:32]} Qxc8 {[%emt 0:00:09]} 25. Bg3 {[%emt 0:09:10]} Ne6 {[%emt 0:07:08]} 26. Qb5 {[%emt 0:04:51]} Qc1+ {[%emt 0:02:10]} 27. Kg2 {[%emt 0:02:55]} Qd2+ {[%emt 0:02:52]} 28. Kf1 {[%emt 0:04:48]} Nxd4 {[%emt 0:06:31]} 29. Qe8+ {[%emt 0:03:04]} Kh7 {[%emt 0:00:07]} 30. Bf2 {[%emt 0:03:40]} Nxf3 {[%emt 0:01:40]} 31. Qxf7 {[%emt 0:01:00]} Ng5 {[%emt 0:03:05]} 1/2-1/2

[Event "Faroese-ch Candidates 2025"]
[Site "Torshavn"]
[Date "2025.04.13"]
[Round "2.3"]
[White "Lamhauge, Eydun"]
[Black "Davidsen, Rokur"]
[Result "0-1"]
[Annotator "NA"]
[ECO "B20"]
[WhiteElo "1829"]
[BlackElo "1824"]
[PlyCount "54"]
[EventDate "2025.04.11"]
[EventType "tourn"]
[EventCountry "FAI"]
[SourceTitle "playchess.com"]
[Source "ChessBase"]
[SourceQuality "1"]
[TimeControl "40/5400+30:900+30"]

1. e4 {[%emt 0:00:10]} c5 {[%emt 0:00:08]} 2. b4 {[%emt 0:00:29]} cxb4 {[%emt 0:00:48]} 3. a3 {[%emt 0:00:11]} bxa3 {[%emt 0:01:12]} 4. d4 {[%emt 0:00:17]} d5 {[%emt 0:01:21]} 5. exd5 {[%emt 0:03:19]} Qxd5 {[%emt 0:05:46]} 6. Nc3 {[%emt 0:01:10]} Qd8 {[%emt 0:02:08]} 7. Nf3 {[%emt 0:03:30]} e6 {[%emt 0:02:00]} 8. Bd3 {[%emt 0:02:14]} Bb4 {[%emt 0:03:17]} 9. Bd2 {[%emt 0:04:35]} Nc6 {[%emt 0:04:08]} 10. Nb5 {[%emt 0:12:49]} a6 {[%emt 0:12:12]} 11. c3 {[%emt 0:10:53]} Be7 {[%emt 0:07:22]} 12. Nxa3 {[%emt 0:01:26]} Nf6 {[%emt 0:07:25]} 13. Qe2 {[%emt 0:02:59]} O-O {[%emt 0:01:28]} 14. O-O {[%emt 0:02:03]} Re8 {[%emt 0:03:28]} 15. Nc4 {[%emt 0:06:12]} Nd5 {[%emt 0:06:55]} 16. Nfe5 {[%emt 0:06:00]} Nxe5 {[%emt 0:02:48]} 17. Nxe5 {[%emt 0:00:50]} Bd6 {[%emt 0:01:47]} 18. Bxh7+ {[%emt 0:04:15]} Kxh7 {[%emt 0:16:42]} 19. Qh5+ {[%emt 0:00:42]} Kg8 {[%emt 0:00:09]} 20. Qxf7+ {[%emt 0:02:47]} Kh7 {[%emt 0:01:28]} 21. Qg6+ {[%emt 0:05:09]} Kg8 {[%emt 0:00:41]} 22. Qf7+ {[%emt 0:04:38]} Kh7 {[%emt 0:00:09]} 23. Bh6 {[%emt 0:16:00]} Bxe5 {[%emt 0:06:39]} 24. dxe5 {[%emt 0:01:22]} Qe7 {[%emt 0:05:01]} 25. Qh5 {[%emt 0:01:18]} gxh6 {[%emt 0:00:25]} 26. Ra4 {[%emt 0:00:21]} Rg8 {[%emt 0:01:40]} 27. Rh4 {[%emt 0:01:03]} Qg5 {[%emt 0:04:18]} 0-1

[Event "Faroese-ch Candidates 2025"]
[Site "Torshavn"]
[Date "2025.04.13"]
[Round "2.4"]
[White "Tummasarson, Flovin M."]
[Black "Hojsted, Ingi"]
[Result "1-0"]
[Annotator "NA"]
[ECO "B07"]
[WhiteElo "1837"]
[BlackElo "1841"]
[PlyCount "35"]
[EventDate "2025.04.11"]
[EventType "tourn"]
[EventCountry "FAI"]
[SourceTitle "playchess.com"]
[Source "ChessBase"]
[SourceQuality "1"]
[TimeControl "40/5400+30:900+30"]

1. e4 {[%emt 0:00:13]} d6 {[%emt 0:00:07]} 2. d4 {[%emt 0:00:32]} Nf6 {[%emt 0:00:06]} 3. Nc3 {[%emt 0:00:23]} c6 {[%emt 0:00:10]} 4. f4 {[%emt 0:00:43]} Qa5 {[%emt 0:00:24]} 5. e5 {[%emt 0:02:31]} Ne4 {[%emt 0:02:15]} 6. Nf3 {[%emt 0:00:58]} Bg4 {[%emt 0:06:32]} 7. Bd3 {[%emt 0:09:48]} Nxc3 {[%emt 0:05:55]} 8. Qd2 {[%emt 0:04:05]} Bxf3 {[%emt 0:08:01]} 9. gxf3 {[%emt 0:00:09]} Qd5 {[%emt 0:01:02]} 10. Qxc3 {[%emt 0:01:28]} Qxf3 {[%emt 0:01:12]} 11. Rf1 {[%emt 0:00:14]} Qh3 {[%emt 0:05:10]} 12. f5 {[%emt 0:07:15]} Nd7 {[%emt 0:08:07]} 13. exd6 {[%emt 0:08:03]} Qxh2 {[%emt 0:08:11]} 14. Bf4 {[%emt 0:01:04]} Qh4+ {[%emt 0:00:52]} 15. Kd2 {[%emt 0:00:40]} O-O-O {[%emt 0:01:13]} 16. dxe7 {[%emt 0:00:09]} Qxe7 {[%emt 0:05:59]} 17. Qxc6+ {[%emt 0:00:09]} bxc6 {[%emt 0:00:24]} 18. Ba6# {[%emt 0:00:09]} 1-0

[Event "Faroese-ch Candidates 2025"]
[Site "Torshavn"]
[Date "2025.04.14"]
[Round "3.1"]
[White "Hojsted, Ingi"]
[Black "Dahl, Karl M"]
[Result "0-1"]
[Annotator "NA RC"]
[ECO "B55"]
[WhiteElo "1841"]
[BlackElo "1772"]
[PlyCount "88"]
[EventDate "2025.04.11"]
[EventType "tourn"]
[EventCountry "FAI"]
[SourceTitle "playchess.com"]
[Source "ChessBase"]
[SourceQuality "1"]
[TimeControl "40/5400+30:900+30"]

1. e4 {[%emt 0:00:06]} c5 {[%emt 0:00:02]} 2. Nf3 {[%emt 0:00:18]} d6 {[%emt 0:00:09]} 3. d4 {[%emt 0:00:09]} cxd4 {[%emt 0:00:09]} 4. Nxd4 {[%emt 0:00:05]} Nf6 {[%emt 0:00:08]} 5. f3 {[%emt 0:00:07]} e5 {[%emt 0:00:10]} 6. Nb3 {[%emt 0:01:00]} d5 {[%emt 0:00:26]} 7. Bg5 {[%emt 0:10:02]} Be6 {[%emt 0:00:16]} 8. exd5 {[%emt 0:05:12]} Qxd5 {[%emt 0:00:17]} 9. Nc3 {[%emt 0:00:46]} Bb4 {[%emt 0:01:20]} 10. Bd3 {[%emt 0:12:26]} Bxc3+ {[%emt 0:05:00]} 11. bxc3 {[%emt 0:00:17]} Nc6 {[%emt 0:01:23]} 12. Be3 {[%emt 0:06:46]} b6 {[%emt 0:04:25]} 13. O-O {[%emt 0:00:26]} O-O {[%emt 0:00:57]} 14. Qe1 {[%emt 0:02:16]} Ne7 {[%emt 0:05:39]} 15. Bg5 {[%emt 0:08:55]} Bf5 {[%emt 0:04:48]} 16. Bxf6 {[%emt 0:01:11]} gxf6 {[%emt 0:00:03]} 17. Be4 {[%emt 0:03:56]} Bxe4 {[%emt 0:00:54]} 18. fxe4 {[%emt 0:00:10]} Qe6 {[%emt 0:00:43]} 19. Qh4 {[%emt 0:03:05]} Ng6 {[%emt 0:13:51]} 20. Qh6 {[%emt 0:03:14]} Qg4 {[%emt 0:06:57]} 21. Qe3 {[%emt 0:13:58]} Nf4 {[%emt 0:03:30]} 22. Rf2 {[%emt 0:03:57]} Kh8 {[%emt 0:03:17]} 23. Kh1 {[%emt 0:03:11]} Rg8 {[%emt 0:03:00]} 24. g3 {[%emt 0:00:42]} Nh5 {[%emt 0:04:47]} 25. Nd2 {[%emt 0:05:02]} Qh3 {[%emt 0:07:04]} 26. Rg1 {[%emt 0:02:32]} Rg6 {[%emt 0:02:21]} 27. Rf3 {[%emt 0:05:45]} Qg4 {[%emt 0:08:34]} 28. Nf1 {[%emt 0:01:59]} Rag8 {[%emt 0:00:56]} 29. Qd3 {[%emt 0:02:30]} Ng7 {[%emt 0:03:05]} 30. Nd2 {[%emt 0:01:34]} h5 {[%emt 0:01:42]} 31. Qf1 {[%emt 0:02:14]} Qg5 {[%emt 0:02:24]} 32. Qf2 {[%emt 0:01:39]} Ne6 {[%emt 0:01:57]} 33. Rf5 {[%emt 0:00:43]} Qh6 {[%emt 0:01:07]} 34. Nf3 {[%emt 0:00:24]} Rd8 {[%emt 0:02:11]} 35. Nh4 {[%emt 0:00:18]} Rd2 {[%emt 0:00:49]} 36. Nxg6+ {[%emt 0:00:03]} fxg6 {[%emt 0:00:02]} 37. Qf1 {[%emt 0:01:20]} gxf5 {[%emt 0:00:11]} 38. Qxf5 {[%emt 0:00:03]} Rd6 {[%emt 0:01:18]} 39. g4 {[%emt 0:00:30]} Qg5 {[%emt 0:05:15]} 40. gxh5 {[%emt 0:00:00]} Qxf5 {[%emt 0:00:00]} 41. exf5 {[%emt 0:01:26]} Ng5 {[%emt 0:01:52]} 42. a4 {[%emt 0:04:49]} Rd2 {[%emt 0:00:49]} 43. h4 {[%emt 0:01:35]} Nf3 {[%emt 0:00:35]} 44. Rg6 {[%emt 0:01:06]} Rh2# {[%emt 0:00:17]} 0-1

[Event "Faroese-ch Candidates 2025"]
[Site "Torshavn"]
[Date "2025.04.14"]
[Round "3.2"]
[White "Davidsen, Rokur"]
[Black "Tummasarson, Flovin M."]
[Result "1/2-1/2"]
[Annotator "NA RC"]
[ECO "C50"]
[WhiteElo "1824"]
[BlackElo "1837"]
[PlyCount "70"]
[EventDate "2025.04.11"]
[EventType "tourn"]
[EventCountry "FAI"]
[SourceTitle "playchess.com"]
[Source "ChessBase"]
[SourceQuality "1"]
[TimeControl "40/5400+30:900+30"]

1. e4 {[%emt 0:00:05]} e5 {[%emt 0:00:06]} 2. Nf3 {[%emt 0:00:19]} Nc6 {[%emt 0:00:08]} 3. Bc4 {[%emt 0:00:52]} Nf6 {[%emt 0:01:06]} 4. d3 {[%emt 0:01:19]} Bc5 {[%emt 0:01:07]} 5. O-O {[%emt 0:01:04]} d6 {[%emt 0:01:08]} 6. a4 {[%emt 0:01:57]} Bg4 {[%emt 0:03:52]} 7. c3 {[%emt 0:01:03]} a5 {[%emt 0:00:09]} 8. Nbd2 {[%emt 0:07:10]} Qd7 {[%emt 0:08:09]} 9. Re1 {[%emt 0:04:42]} h5 {[%emt 0:07:59]} 10. Nb3 {[%emt 0:08:05]} Bxf3 {[%emt 0:10:31]} 11. Qxf3 {[%emt 0:02:33]} Qg4 {[%emt 0:02:45]} 12. Bb5 {[%emt 0:11:57]} Bb6 {[%emt 0:06:50]} 13. Be3 {[%emt 0:06:11]} Ke7 {[%emt 0:08:55]} 14. Nd2 {[%emt 0:05:37]} Nd7 {[%emt 0:08:53]} 15. Nc4 {[%emt 0:02:05]} Qxf3 {[%emt 0:04:19]} 16. gxf3 {[%emt 0:00:16]} f5 {[%emt 0:00:17]} 17. Bg5+ {[%emt 0:12:25]} Kf7 {[%emt 0:07:34]} 18. exf5 {[%emt 0:03:21]} h4 {[%emt 0:02:53]} 19. Be3 {[%emt 0:07:38]} Rh5 {[%emt 0:08:15]} 20. Nxb6 {[%emt 0:00:17]} Nxb6 {[%emt 0:01:03]} 21. f4 {[%emt 0:06:21]} Rxf5 {[%emt 0:01:51]} 22. Bxc6 {[%emt 0:00:24]} bxc6 {[%emt 0:00:44]} 23. fxe5 {[%emt 0:00:42]} Rxe5 {[%emt 0:00:29]} 24. Bxb6 {[%emt 0:00:29]} Rg5+ {[%emt 0:06:07]} 25. Kf1 {[%emt 0:00:10]} cxb6 {[%emt 0:00:06]} 26. Re4 {[%emt 0:00:43]} Rd5 {[%emt 0:01:36]} 27. d4 {[%emt 0:03:39]} g5 {[%emt 0:00:15]} 28. Rae1 {[%emt 0:00:41]} Ra7 {[%emt 0:00:55]} 29. Kg2 {[%emt 0:02:24]} Rf5 {[%emt 0:00:54]} 30. h3 {[%emt 0:00:53]} b5 {[%emt 0:00:25]} 31. f4 {[%emt 0:01:02]} bxa4 {[%emt 0:01:39]} 32. fxg5 {[%emt 0:00:56]} Rxg5+ {[%emt 0:00:39]} 33. Rg4 {[%emt 0:00:12]} Rxg4+ {[%emt 0:00:47]} 34. hxg4 {[%emt 0:00:06]} Rb7 {[%emt 0:00:08]} 35. Re2 {[%emt 0:00:22]} Rb3 {[%emt 0:02:31]} 1/2-1/2